Cogmind - Beta 13 @@@ ROGUE MODE // 2024.03.21 @ 16:41:23 Player: Mogwok Wargfriend Result: Destroyed by Y-64 Sentinel with KE Penetrator Performance ------------- Evolutions (3) 1500 Regions Visited (5) 1000 Robots Destroyed (142) 710 Value Destroyed (2932) 2932 Prototype IDs (3) 60 Alien Tech Used (0) 0 Bonus (123) 123 TOTAL SCORE: 6325 Bonus ------- High Alert Combat Kills 123 Cogmind --------- Core Integrity 0/700 Matter 280/300 Energy 160/160 System Corruption 5% Temperature Cool (0) Movement Rolling (80) Location -7/Lower Caves Parts ------- > --- POWER (1) -------- Light Nuclear Core > --- PROPULSION (4) --- Aluminum Leg Wheel Wheel VTOL Module > --- UTILITY (6) ------ Improved Signal Interpreter Advanced Targeting Computer Hacking Suite > --- WEAPON (2) ------- Mini Assault Cannon > --- INVENTORY (5) ---- Cooled Deuterium Engine Hacking Suite Hacking Suite System Shield Particle Gun Peak State ------------ > --- POWER ------------ Cooled Deuterium Engine > --- PROPULSION ------- Armored Treads Improved Titanium Leg Armored Huge Wheel > --- UTILITY ---------- Medium Storage Unit Improved Sensor Array Improved Signal Interpreter Advanced Targeting Computer Layered Light Armor Plating Hacking Suite > --- WEAPON ----------- Heavy Assault Cannon > --- INVENTORY -------- Improved Cooling System Improved Shield Generator Hacking Suite Hacking Suite System Shield Heavy EM Shotgun Heavy EM Shotgun Assault Cannon Mini Assault Cannon Spear [Rating: 46] Favorites ----------- Power Improved Ion Engine Engine Improved Ion Engine Power Core Light Nuclear Core Propulsion Aluminum Leg Treads Armored Treads Leg Aluminum Leg Wheel Compact Wheel Flight Unit VTOL Module Utility Advanced Targeting Computer Device Improved Sensor Array Storage Small Storage Unit Processor Advanced Targeting Computer Hackware Hacking Suite Protection Hardened Medium Armor Plating Weapon Heavy EM Shotgun Energy Gun Heavy EM Shotgun Energy Cannon EM Pulse Cannon Ballistic Gun Assault Rifle Ballistic Cannon Heavy Assault Cannon Piercing Weapon Spear Build | -11 -10 -9 -8 -7 -7 ------- Run | Yrd Mat Mat Mat Fac Low Slots Evolved 6 | . . 2 2 2 . Power . | . . . . . . Propulsion 2 | . . 1 1 . . Utility 4 | . . 1 1 2 . Weapon . | . . . . . . Parts Attached 76 | 7 12 10 10 29 8 Power 10 | 1 2 2 . 3 2 Engine 8 | 1 2 2 . 3 . Core 2 | . . . . . 2 Reactor . | . . . . . . Propulsion 27 | 2 3 3 3 11 5 Treads 1 | . . . . 1 . Leg 15 | 2 3 3 3 3 1 Wheel 8 | . . . . 6 2 Hover . | . . . . . . Flight 3 | . . . . 1 2 Utility 19 | 2 2 2 5 8 . Device 7 | 1 2 1 2 1 . Storage 2 | 1 . . . 1 . Processor 3 | . . 1 2 . . Hackware 1 | . . . . 1 . Protection 6 | . . . 1 5 . Artifact . | . . . . . . Weapon 20 | 2 5 3 2 7 1 Energy Gun 12 | 1 4 2 2 3 . Energy Cannon 1 | . . 1 . . . Ballistic Gun 4 | 1 1 . . 2 . Ballistic Cannon 2 | . . . . 1 1 Launcher . | . . . . . . Special Weapon . | . . . . . . Impact Weapon . | . . . . . . Slashing Weapon . | . . . . . . Piercing Weapon 1 | . . . . 1 . Special Melee Weapon . | . . . . . . Unidentified Prototypes 3 | . . . 1 1 1 Parts Lost 19 | . 8 4 . 5 2 Power 4 | . 1 1 . 1 1 Propulsion 8 | . 2 2 . 4 . Utility 2 | . 1 1 . . . Weapon 5 | . 4 . . . 1 Highest Loss Streak 6 | . 6 4 . 4 1 To Critical Strikes . | . . . . . . Average Slot Usage (%) 90 | . 97 91 99 88 51 Engine 8 | . 14 10 9 6 . Leg 21 | . 26 29 35 15 5 Wheel 3 | . . . . 6 2 Device 9 | . 13 15 12 6 . Storage 8 | . 14 11 9 6 . Processor 10 | . . 1 9 15 15 Hackware 4 | . . . . 6 7 Protection 4 | . . . 4 6 . Energy Gun 10 | . 16 17 17 5 . Ballistic Gun 2 | . 11 . . 1 . Ballistic Cannon 2 | . . . . 3 6 Naked Turns . | . . . . . . Heaviest Build 39 | 15 15 20 30 39 9 Greatest Support 60 | 20 20 20 35 60 20 Greatest Overweight (x) 4 | . 4 1 1 2 2 Average Overweight (x) . | . . . . . . Largest Inventory Capacity 10 | 8 8 8 8 10 5 Average Capacity 8 | 7 8 8 8 9 5 Most Carried 10 | 8 8 8 8 10 5 Average Carried 8 | 5 6 7 7 8 4 Final Capacity 8 | 8 8 8 8 5 5 Final Carried 8 | 7 8 8 8 5 5 Class Distribution -------------------- 54% | Mutant 45% | Scavenger-Mutant Dominant Class ---------------- Mutant | -10/Materials Mutant | -9/Materials Mutant | -8/Materials Scavenger-Mutant | -7/Factory Scavenger-Mutant | -7/Lower Caves Resources | -11 -10 -9 -8 -7 -7 ----------- Run | Yrd Mat Mat Mat Fac Low Matter Collected 2491 | 342 191 146 105 1454 253 Remotely . | . . . . . . Salvage Created 4178 | 259 835 650 525 1666 243 Parts 274 | 24 42 37 40 112 19 Haulers Intercepted 7 | . 1 1 1 4 . Recyclers Shooed 7 | . 1 3 . 3 . Parts Field Recycled . | . . . . . . Retrieved Matter . | . . . . . . Parts Self-Destructed 16 | . . . . . 16 Prevented 3 | . . . . . 3 Kills | -11 -10 -9 -8 -7 -7 ------- Run | Yrd Mat Mat Mat Fac Low Combat Hostiles Destroyed 63 | . 10 14 10 19 10 Melee 1 | . . . . . 1 Guns 35 | . 7 11 10 7 . Cannons 22 | . . 3 . 10 9 AOE 5 | . 3 . . 2 . Classes Destroyed 15 | 3 4 3 . 4 1 Worker 18 | 2 1 . 2 13 . Builder 7 | . . . . 7 . Tunneler 10 | 8 1 . . 1 . Hauler 7 | . 1 1 1 4 . Recycler 17 | 1 3 3 1 9 . Mechanic 4 | . . 1 1 2 . Operator 3 | . 1 1 . 1 . Watcher 13 | . 3 2 3 5 . Swarmer 26 | . . 7 8 4 7 Grunt 22 | . 10 4 . 6 2 Brawler 1 | . . . . . 1 Duelist 1 | . . . . 1 . Sentry 8 | . . 3 2 3 . Hunter 1 | . . . . 1 . Programmer 4 | . . . . 4 . Best Kill Streak 8 | 6 6 5 6 8 7 Combat Bots Only 7 | . 4 5 4 3 7 Max Kills in Single Turn 4 | 1 3 1 2 4 1 Gunslinging 1 | . . . . 1 . Exploded 3 | . 3 . . 2 . Melee 1 | . . . . . 1 Uniques/NPCs Destroyed . | . . . . . . Combat | -11 -10 -9 -8 -7 -7 -------- Run | Yrd Mat Mat Mat Fac Low Hostile Shots Fired 496 | . 85 66 39 263 43 Missed 162 | . 23 18 17 89 15 Damage Taken 4529 | 27 878 535 220 2443 426 Core 1041 | . 243 72 24 455 247 Absorbed by Shields . | . . . . . . Core Remaining (%) 69 | 100 2 82 95 . . Volleys Fired 375 | 24 60 55 31 178 27 Largest 2 | 2 2 2 2 2 1 Hottest 115 | 60 80 115 115 100 48 Shots Fired 587 | 48 120 95 62 235 27 Gun 437 | 48 120 89 62 118 . Cannon 150 | . . 6 . 117 27 Launcher . | . . . . . . Special . | . . . . . . Kinetic 270 | 24 54 . . 165 27 Thermal 155 | . . 89 30 36 . Explosive . | . . . . . . Electromagnetic 162 | 24 66 6 32 34 . Robot Hit Streak 19 | 4 13 19 15 15 3 Robot Miss Streak 6 | 5 6 6 3 5 1 Penetration Max 1 | . . . . 1 . Secondary Targets 2 | . . . 1 1 . Max Gunslinging Chain 1 | . . . 1 1 . Shots Hit Robots 396 | 24 70 69 46 168 19 Core Hits 250 | 11 32 61 43 90 13 Critical Kills . | . . . . . . Critical Parts Destroyed 1 | . 1 . . . . Critical Strikes 18 | . 1 4 1 11 1 Burn 6 | . . 4 1 1 . Destroy 1 | . 1 . . . . Blast 11 | . . . . 10 1 Melee Attacks 1 | . . . . . 1 Impact . | . . . . . . Slashing . | . . . . . . Piercing 1 | . . . . . 1 Sneak Attacks 1 | . . . . . 1 Combat Hostiles 1 | . . . . . 1 Follow-up Attacks . | . . . . . . Damage Inflicted 10041 | 406 1497 1009 783 5770 576 Guns 4371 | 320 1053 898 761 1339 . Cannons 4341 | . . 108 . 3717 516 Explosions 1221 | 86 444 . . 691 . Melee 60 | . . . . . 60 Ramming 48 | . . 3 22 23 . Kinetic 5608 | 129 442 . . 4521 516 Thermal 2281 | 86 151 898 371 775 . Explosive 618 | . 293 . . 325 . Electromagnetic 1426 | 191 611 108 390 126 . Impact . | . . . . . . Slashing . | . . . . . . Piercing 60 | . . . . . 60 Highest Corruption 5 | . . 2 . 5 5 Average Corruption 3 | . . 1 . 3 5 Corruption Purged . | . . . . . . Corruption Blocked . | . . . . . . Effects 77 | . . 5 . 66 6 Message Errors 15 | . . 1 . 13 1 Matter Fused 17 | . . 2 . 15 . Heat Flow Errors 11 | . . 1 . 9 1 Energy Discharges 8 | . . . . 6 2 Parts Rejected 4 | . . . . 3 1 Parts Fused 2 | . . 1 . 1 . Data Loss (minor) 9 | . . . . 9 . Data Loss (major) 6 | . . . . 5 1 Misfires 3 | . . . . 3 . Alerts 1 | . . . . 1 . Weapon Failures 1 | . . . . 1 . Overload Shots . | . . . . . . Overflow Damage 633 | . 110 . . 523 . Projectiles 523 | . . . . 523 . Explosions 110 | . 110 . . . . Melee . | . . . . . . Knockbacks 28 | . . . . 28 . Impact . | . . . . . . Kinetic 28 | . . . . 28 . Secondary . | . . . . . . Self-Inflicted Damage 152 | 27 120 . . 5 . Shots 3 | 1 2 . . . . Rammed 3 | . . . . 3 . Targets Rammed 13 | . . 1 2 10 . Kicked 10 | . . 1 2 7 . Crushed . | . . . . . . Highest Temperature 287 | 12 145 144 5 287 145 Average Temperature 52 | 12 37 31 3 58 37 Received Heat Transfer 1320 | . 444 147 36 585 108 Siege Activations . | . . . . . . Robots Corrupted . | . . . . . . Combat Hostiles . | . . . . . . Parts Fried 6 | . 3 . 2 1 . Impact Corruptions . | . . . . . . Robots Melted . | . . . . . . Combat Hostiles . | . . . . . . Parts Melted 2 | . . 2 . . . Heat Transferred 4406 | 100 200 2105 776 1225 . Parts Sabotaged . | . . . . . . Parts Stolen . | . . . . . . Parts Stripped . | . . . . . . Power Chain Reactions 6 | 2 3 . . 1 . Alert | -11 -10 -9 -8 -7 -7 ------- Run | Yrd Mat Mat Mat Fac Low Peak Influence 908 | 55 271 315 420 908 . Initial 110 | . 35 39 110 42 . Average 190 | 20 178 132 128 238 . Maximum Alert Level 3 | . 1 1 2 3 . Low Security (%) 69 | 100 56 77 74 66 . Level 1 14 | . 43 22 21 5 . Level 2 11 | . . . 3 19 . Level 3 4 | . . . . 7 . Level 4 . | . . . . . . Level 5 . | . . . . . . High Security . | . . . . . . Max Security . | . . . . . . Squads Dispatched 14 | . 3 1 . 10 . Investigation 3 | . 2 . . 1 . Extermination 4 | . . . . 4 . Reinforcement 6 | . 1 1 . 4 . Assault 1 | . . . . 1 . Garrison . | . . . . . . Intercept . | . . . . . . Searches Triggered . | . . . . . . Construction Impeded 1 | . . . . 1 . Haulers Reinforced 2 | . . . . 2 . Active Scanning Responses . | . . . . . . Cargo Convoy Interrupts . | . . . . . . Stealth | -11 -10 -9 -8 -7 -7 --------- Run | Yrd Mat Mat Mat Fac Low Distress Signals 12 | . 3 2 4 3 . Communications Jammed . | . . . . . . Distress Signals . | . . . . . . Times Spotted 141 | . 25 24 25 53 14 Peak Tracking Total 10 | . 5 9 5 10 6 Tactical Retreats 16 | . 2 1 4 5 4 Traps | -11 -10 -9 -8 -7 -7 ------- Run | Yrd Mat Mat Mat Fac Low Traps Triggered 5 | . 1 2 . 2 . Indirectly . | . . . . . . Trap Hack Attempts . | . . . . . . Triggered . | . . . . . . Disarmed . | . . . . . . Reprogrammed . | . . . . . . Reused . | . . . . . . Traps Extracted . | . . . . . . Installed . | . . . . . . Triggered 2 | . . . . . 2 Machines | -11 -10 -9 -8 -7 -7 ---------- Run | Yrd Mat Mat Mat Fac Low Machines Disabled 18 | . 2 . . 16 . Max in Single Turn 6 | . 2 . . 6 . Garrison Access 1 | . . . . 1 . Machines Repaired . | . . . . . . Machines Dismantled . | . . . . . . Machines Sabotaged . | . . . . . . Overloaded Fab Kills . | . . . . . . Hacking | -11 -10 -9 -8 -7 -7 --------- Run | Yrd Mat Mat Mat Fac Low Machines Accessed 28 | . 4 5 7 12 . Terminals 20 | . 4 4 5 7 . Fabricators 1 | . . . . 1 . Repair Stations 3 | . . . 2 1 . Recycling Units 1 | . . . . 1 . Scanalyzers 2 | . . 1 . 1 . Garrison Access 1 | . . . . 1 . Total Hacks 77 | . 13 17 16 31 . Successful 33 | . 6 7 8 12 . Failed 44 | . 7 10 8 19 . Catastrophic 6 | . 1 1 1 3 . Database Lockouts . | . . . . . . Manual 46 | . 13 10 8 15 . Terminals 55 | . 13 15 10 17 . Fabricators 3 | . . . . 3 . Repair Stations 9 | . . . 6 3 . Recycling Units 1 | . . . . 1 . Scanalyzers 6 | . . 2 . 4 . Garrison Access 3 | . . . . 3 . Terminal Hacks 16 | . 4 6 4 2 . Record 1 | . . 1 . . . Robot Analysis 5 | . 3 2 . . . Branch Access Points 2 | . . 1 . 1 . Alert Level 2 | . . 1 1 . . Unreport Threat 3 | . 1 . 1 1 . Locate Traps 3 | . . 1 2 . . Fabricator Hacks 1 | . . . . 1 . Network Status 1 | . . . . 1 . Repair Station Hacks 4 | . . . 2 2 . Scan Component 3 | . . . 2 1 . Repair 1 | . . . . 1 . Recycling Unit Hacks 1 | . . . . 1 . Report Inventory 1 | . . . . 1 . Scanalyzer 2 | . . . . 2 . Insert Component 1 | . . . . 1 . Analyze 1 | . . . . 1 . Garrison Access Hacks 1 | . . . . 1 . Seal Access 1 | . . . . 1 . Unauthorized Hacks 8 | . 2 1 2 3 . Terminals 5 | . 2 1 1 1 . Assimilate 1 | . 1 . . . . Operators 4 | . 1 1 1 1 . Fabricators 1 | . . . . 1 . Download 1 | . . . . 1 . Repair Stations 1 | . . . 1 . . Mechanics 1 | . . . 1 . . Recycling Units . | . . . . . . Scanalyzers . | . . . . . . Garrison Access 1 | . . . . 1 . Intercept 1 | . . . . 1 . Data Cores Recovered 1 | . . . . 1 . Used . | . . . . . . Hacking Detections 27 | . 4 5 7 11 . Full Trace Events 1 | . 1 . . . . Feedback Events . | . . . . . . Feedback Blocked . | . . . . . . Robot Schematics Acquired . | . . . . . . Robots Built . | . . . . . . Authchips . | . . . . . . Time . | . . . . . . Total Robot Build Rating . | . . . . . . Part Schematics Acquired 2 | . . . . 2 . Parts Built . | . . . . . . Authchips . | . . . . . . Time . | . . . . . . Total Part Build Rating . | . . . . . . Parts Repaired . | . . . . . . Time 38 | . . . . 38 . Parts Recycled . | . . . . . . Recycled Matter . | . . . . . . Retrieved Matter . | . . . . . . Retrieved Components . | . . . . . . Parts Scanalyzed 1 | . . . . 1 . Part Schematics Acquired 1 | . . . . 1 . Parts Damaged . | . . . . . . Bothacking | -11 -10 -9 -8 -7 -7 ------------ Run | Yrd Mat Mat Mat Fac Low Used RIF Installer . | . . . . . . Robots Hacked . | . . . . . . Non-combat . | . . . . . . Combat . | . . . . . . Robot Hacks Applied . | . . . . . . Relay Couplers Released . | . . . . . . Fabnet Peak Effective % . | . . . . . . Robots Rewired . | . . . . . . Allies Hacked . | . . . . . . Hacks Repelled . | . . . . . . Allies | -11 -10 -9 -8 -7 -7 -------- Run | Yrd Mat Mat Mat Fac Low Total Allies . | . . . . . . Largest Group . | . . . . . . Highest-Rated Group . | . . . . . . Highest-Rated Ally . | . . . . . . Total Orders . | . . . . . . Ally Attacks . | . . . . . . Total Damage . | . . . . . . Kills . | . . . . . . Allies Corrupted . | . . . . . . Allies Melted 1 | . . . . 1 . Intel | -11 -10 -9 -8 -7 -7 ------- Run | Yrd Mat Mat Mat Fac Low Robot Analysis Total 5 | . 3 2 . . . Derelict Logs Recovered . | . . . . . . Drone Launches . | . . . . . . Drone Recoveries . | . . . . . . Exploration | -11 -10 -9 -8 -7 -7 ------------- Run | Yrd Mat Mat Mat Fac Low Turns Passed 6766 | 269 807 648 1255 3549 238 Spaces Moved 4269 | 152 454 354 843 2279 187 Core 110 | 6 10 . . 86 8 Treads . | . . . . . . Legs 3002 | 146 444 354 843 1215 . Wheels 1086 | . . . . 978 108 Hover . | . . . . . . Flight 71 | . . . . . 71 Fastest Speed 35 | 50 120 120 120 50 35 Average Speed 117 | 117 126 120 120 117 87 Slowest Speed 260 | 120 250 190 190 260 205 Overloaded Moves . | . . . . . . Propulsion Burnouts . | . . . . . . Robots Hopped . | . . . . . . Cave-ins Triggered . | . . . . . . Exploration Rate (%) 32 | 6 60 31 37 45 18 Regions Visited 5 Branch Regions 1 Pre-discovered Areas . | . . . . . . Known Exits Taken 2 | . . . 1 1 . Unknown Exits Taken 3 | 1 1 1 . . . Scrap Searched . | . . . . . . Spaces Dug 3 | . . . . 3 . Terrain Destroyed 101 | 2 32 . . 61 6 Melee . | . . . . . . Projectile 50 | . . . . 44 6 AOE 51 | 2 32 . . 17 . Terrain Rammed . | . . . . . . Walls Destroyed . | . . . . . . Machines Disabled . | . . . . . . Actions | -11 -10 -9 -8 -7 -7 --------- Run | Yrd Mat Mat Mat Fac Low Total 5363 | 192 571 481 1022 2869 228 Wait 509 | 1 23 52 116 313 4 Move 4264 | 151 453 353 842 2278 187 Hop . | . . . . . . Pick Up 44 | 8 11 4 8 12 1 Fast Attach 45 | 7 6 6 6 13 7 Attach 16 | . 5 2 3 5 1 Detach 9 | . 3 1 2 3 . Swap 15 | . 1 2 1 11 . Drop 57 | 1 9 5 11 31 . Fire 375 | 24 60 55 31 178 27 Melee 1 | . . . . . 1 Ram 3 | . . . . 3 . Kick 10 | . . 1 2 7 . Crush . | . . . . . . Escape Stasis 15 | . . . . 15 . Rewire . | . . . . . . Trap . | . . . . . . Miscellaneous . | . . . . . . Route ------- -11/Scrapyard -10/Materials (discovered 3 exits: *Mat x2 / [*Min]) -9/Materials (discovered 3 exits: *Mat / Min x2) -8/Materials -7/Factory (discovered 5 exits: *Fac / Sto x2 / *Low x2) -7/Lower Caves History --------- Turn | Location | Event 3 | -11/Scrapyard | Discovered new exit (range 15) 270 | -11/Scrapyard | Entered Materials 312 | -10/Materials | Build established: Mutant 588 | -10/Materials | Discovered new exit (range 12) 652 | -10/Materials | Core integrity fell below 50% 706 | -10/Materials | Core integrity fell below 20% 750 | -10/Materials | Lost 6 parts (1p2n1u2w) 919 | -10/Materials | Discovered new exit (range 12) 1058 | -10/Materials | Discovered new exit (range 4) 1077 | -10/Materials | Entered another Materials area 1077 | -9/Materials | Evolved 2 slots: Propulsion x1, Utility x1 1234 | -9/Materials | Identified exit to Mines 1507 | -9/Materials | Lost 4 parts (1p2n1u) 1603 | -9/Materials | Discovered new exit (range 4) 1725 | -9/Materials | Entered another Materials area 1725 | -8/Materials | Evolved 2 slots: Propulsion x1, Utility x1 1922 | -8/Materials | Build established: Scavenger-Mutant 2163 | -8/Materials | Discovered new exit (range 10) 2426 | -8/Materials | Build established: Mutant 2977 | -8/Materials | Identified exit to Factory 2980 | -8/Materials | Entered Factory 2980 | -7/Factory | Evolved 2 slots: Utility x2 3166 | -7/Factory | Build established: Scavenger-Mutant 3524 | -7/Factory | Discovered new exit (range 16) 3564 | -7/Factory | Identified exit to Lower Caves 4390 | -7/Factory | Identified exit to Storage 4583 | -7/Factory | Lost 4 parts (1p3n) 4834 | -7/Factory | Build established: Mutant 5209 | -7/Factory | Build established: Scavenger-Mutant 5218 | -7/Factory | Discovered new exit (range 4) 5220 | -7/Factory | Identified exit to Factory 5919 | -7/Factory | Build established: Mutant 6180 | -7/Factory | First assault squad dispatched 6474 | -7/Factory | Core integrity fell below 50% 6529 | -7/Factory | Entered Lower Caves 6564 | -7/Lower Caves | Core integrity fell below 20% 6601 | -7/Lower Caves | Destroyed 7 combat bots 6767 | -7/Lower Caves | Destroyed by Y-64 Sentinel with KE Penetrator Last Messages --------------- 06611_ VTOL Module fries itself beyond repair. 06612_ Acquired 5 matter. 06614_ Acquired 8 matter. 06615_ Autogun fries itself beyond repair. 06624_ S-27 Virus destroyed. 06627_ Acquired Lgt. Nuclear Core. 06628_ Acquired 21 matter. 06632_ Acquired 5 matter. 06669_ M-14 Sweeper Wheel blasted off. 06677_ Acquired Wheel. 06680_ Acquired 6 matter. 06681_ System corrupted: Heat flow error (+172). 06699_ System corrupted: Substantial component data lost. 06740_ Acquired 5 matter. 06743_ OYIYQWRAJNOGG UIEKWYCFKCSH|E 06755_ Acquired Wheel. 06756_ Acquired 2 matter. 06757_ Acquired 27 matter. 06767_ Penetrated by Slug. Map ----- +----------------------------------------------------+ | ?????????????????????????????????????????????????? | | ???????????????????????????????????????????####??? | | ?????????????????????????????????????????### ##?? | | ????????????????????????????????????????## & #?? | | ????????????????????????????????????????# ##? | | ????????????????????????????????????????# #? | | ????????????????????????????????????????# ## | | ?????????????????????????????????????????# | | ??????????????????????????????????????????# | | ??????????????????????????????????????????# #### | | ??????????????????????????????????????????# ##?## | | ?????????????????????###??#???????????????# #??# | | ????????????????????? #? ???????????????# #### | | ????????????????????? # #??????????????# ## | | ????????????????????? #??????????????### ## | | ?????????????????????? #????????????????# ## | | ?????????????????????? #??????????????? | | ??????????????????????# ###??????????? | | ????????????????????### #Y?????????? ### | | ????????????????????? ???????? ??## | | ?????????????????????? ??????? ##???#%# | | ??????????????????????# ????? #?????#%# | | ??????????????????????? #???? ## ?????## % | | ???????????????????????# ###?????# ????### | | ???????????????????????# #???## ???? | | ????????????????????????#@ ##### ????# | | ????????????????????????## ###?????????#% | | ????????????????????????## #???????????# % | | ????????????????????????# ##?#####????# | | ????????????????????????# ## # ????## | | ???????????????????????## ## #?????# | | ???????????????????????# ### #????## | | ???????????????????????# ### ### #????# | | ???????????????????????###### ### ###### % | | ???????????????????????????## ## ### | | ???????????????????????# ### ## ### | | ??????????????????????# ## | | ??????????????????????# #### #### | | ??????????????????????#### ## ##??########??? | | ?????????????????????????###?#######?????????????? | | ?????????????????????????????????????????????????? | | ?????????????????????????????????????????????????? | | ?????????????????????????????????????????????????? | | ?????????????????????????????????????????????????? | | ?????????????????????????????????????????????????? | | ?????????????????????????????????????????????????? | | ?????????????????????????????????????????????????? | | ?????????????????????????????????????????????????? | | ?????????????????????????????????????????????????? | | ?????????????????????????????????????????????????? | +----------------------------------------------------+ Best States ------------- Heat Dissipation 72 Energy Generation 18 Energy Capacity 310 Matter Stores 300 Matter Capacity 300 Sight Range 16 Robot Scan Range 15 Terrain Scan Range 16 Terrain Scan Density 10 Armor Coverage 225 Evasion (%) 61 Targeting Accuracy 8 Offensive Hacking 10 Item Schematics ----------------- Cooling System | -7/Factory | Scanalyzed Phase Cannon | -7/Factory | Downloaded Robot Schematics ------------------ None Fabricated ------------ Nothing Alien Tech Used ----------------- None Achievements -------------- None Challenges ------------ None Game ------ Seed AnalysisWeaponsCanceller Manual? 0 Play Time 00:50:42 Cumulative 110.3 hours Start 2024.03.21 @ 15:32:37 End 2024.03.21 @ 16:41:23 Sessions 1 Manual Loads 0 Difficulty Rogue Special Mode None Game No. 111 Rogue 111 Adventurer 0 Explorer 0 Win Type - Total 0 Types 0/0/0/0/0/0/0/0/0 Lore% 40 Gallery% 52 Achievement% 36 Wizard Run 0 Options --------- Layout 2 ASCII 1 Keyboard 1 Movement Numpad Keybinds 0 Fullscreen 2 Font 32/TamsynBold Map View 50x44 Zoom Use 0% Tactical HUD 1 Map Filters NONE Filters NONE Steam 1 RUN: 055a00c7-9126-4883-86de-147d6f4780ad